bitfinex-derivatives/quotes_BTCF0:USTF0_20251115
["timestamp","ask_amount","ask_price","bid_price","bid_amount"]
[1763222551231,0.03037472,96207.0,96206.0,0.04477576]
[1763222552037,0.05248472,96207.0,96206.0,0.04477576]
[1763222553038,0.07382472,96207.0,96206.0,0.04477576]
[1763222554435,0.03037472,96207.0,96206.0,0.04477576]
[1763222554845,0.05248472,96207.0,96206.0,0.04477576]
[1763222556143,0.07382472,96207.0,96206.0,0.04477576]
[1763222558543,0.07382472,96207.0,96206.0,0.02346576]
[1763222558849,0.07382472,96207.0,96206.0,0.00041576]
[1763222559047,0.07382472,96207.0,96206.0,0.02164576]
[1763222559242,0.07382472,96207.0,96206.0,0.04295576]
[1763222560142,0.07382472,96207.0,96206.0,0.02164576]
[1763222560849,0.07382472,96207.0,96206.0,0.04295576]
[1763222561439,0.07382472,96207.0,96206.0,0.00041576]
[1763222562143,0.07382472,96207.0,96206.0,0.02164576]
[1763222563746,0.07382472,96207.0,96206.0,0.00041576]
[1763222564842,0.07382472,96207.0,96206.0,0.04295576]
[1763222566547,0.04345,96207.0,96206.0,0.04295576]
[1763222567450,0.04564803,96210.0,96209.0,0.04254]
[1763222567852,0.07062274,96210.0,96209.0,0.04254]
[1763222580666,0.08408274,96210.0,96209.0,0.04254]
[1763222581253,0.07062274,96210.0,96209.0,0.04254]
[1763222581458,0.08408274,96210.0,96209.0,0.04254]
[1763222582360,0.07062274,96210.0,96209.0,0.04254]
[1763222582566,0.02717274,96210.0,96209.0,0.04254]
[1763222582953,0.04922274,96210.0,96209.0,0.04254]
[1763222583160,0.07235274,96210.0,96209.0,0.04254]
[1763222587562,0.08581274,96210.0,96209.0,0.04254]
[1763222594072,0.07235274,96210.0,96209.0,0.04254]
[1763222595776,0.0001559,96225.0,96224.0,0.04502]
[1763222595969,0.04369,96229.0,96228.0,0.04502]
[1763222596169,0.04369,96229.0,96228.0,0.40582]
[1763222597281,0.04369,96220.0,96219.0,0.60404386]
[1763222597573,0.04588803,96220.0,96219.0,0.3608]
[1763222598077,0.04588803,96220.0,96187.0,0.07479344]
[1763222598078,0.04369,96207.0,96187.0,0.07479344]
[1763222598281,0.04369,96176.0,96175.0,0.07709805]
[1763222598482,0.40449,96176.0,96175.0,0.02784895]
[1763222598677,0.40449,96176.0,96175.0,0.04969895]
[1763222598883,0.3608,96176.0,96175.0,0.04969895]
[1763222599174,0.40449,96176.0,96175.0,0.04969895]
[1763222600382,0.40449,96176.0,96175.0,0.05069895]
[1763222600976,0.40449,96176.0,96175.0,0.05169895]
[1763222601479,0.40449,96176.0,96175.0,0.00667895]
[1763222601679,0.41425,96176.0,96175.0,0.00667895]
[1763222601884,0.04369,96174.0,96173.0,0.00010269]
[1763222602376,0.73136,96176.0,96166.0,0.1220378]
[1763222602377,0.04369,96167.0,96166.0,0.1220378]
[1763222602580,0.40449,96167.0,96166.0,0.00041587]
[1763222602982,0.40349,96167.0,96166.0,0.00041587]
[1763222603385,0.40359269,96167.0,96166.0,0.04543587]
[1763222603584,0.40259269,96167.0,96166.0,0.04543587]
[1763222603980,0.40259269,96167.0,96166.0,0.04743587]
[1763222604484,0.40259269,96167.0,96166.0,0.04943587]
[1763222604684,0.38159269,96167.0,96166.0,0.04943587]
[1763222604883,0.36090269,96167.0,96166.0,0.04943587]
[1763222607078,0.00010269,96167.0,96166.0,0.04943587]
[1763222611284,0.04728269,96167.0,96166.0,0.04943587]
[1763222612286,0.00010269,96167.0,96166.0,0.15349027]
[1763222612594,0.00010269,96167.0,96166.0,0.04943587]
[1763222612889,0.04939269,96167.0,96166.0,0.06405587]
[1763222616296,0.3608,96191.0,96190.0,0.04913]
[1763222616297,0.3856,96191.0,96190.0,0.04913]
[1763222616489,0.41009,96191.0,96190.0,0.04986015]
[1763222617586,0.3608,96191.0,96190.0,0.04986015]
[1763222618694,0.3608,96191.0,96190.0,0.05086015]
[1763222619287,0.3608,96191.0,96190.0,0.04986015]
[1763222619483,0.3608,96191.0,96190.0,0.05086015]
[1763222619796,0.3856,96191.0,96190.0,0.05086015]
[1763222620488,0.0248,96191.0,96190.0,0.05186015]
[1763222620885,0.4102459,96200.0,96199.0,0.04913]
[1763222621089,0.41244393,96200.0,96199.0,0.04913]
[1763222621988,0.37568393,96200.0,96192.0,0.02477]
[1763222622188,0.04929,96193.0,96192.0,0.02477]
[1763222622388,0.04929,96193.0,96192.0,0.04913]
[1763222623494,0.04929,96193.0,96190.0,0.00088605]
[1763222623495,0.04929,96191.0,96190.0,0.00088605]
[1763222624195,0.04929,96191.0,96190.0,0.02565605]
[1763222624387,0.3857559,96200.0,96199.0,0.04913]
[1763222624592,0.41244393,96200.0,96199.0,0.04913]
[1763222624997,0.04929,96193.0,96192.0,0.06375]
[1763222628298,0.41009,96211.0,96210.0,0.04913]
[1763222628495,0.43421903,96211.0,96210.0,0.00073015]
[1763222628702,0.04929,96192.0,96191.0,0.02477]
[1763222629000,0.04929,96192.0,96191.0,0.04913]
[1763222631499,0.04929,96191.0,96190.0,0.00088605]
[1763222631904,0.04929,96191.0,96190.0,0.02565605]
[1763222632103,0.04929,96191.0,96190.0,0.00088605]
[1763222633495,0.04929,96191.0,96190.0,0.05001605]
[1763222634101,0.04929,96191.0,96190.0,0.02565605]
[1763222634301,0.04929,96191.0,96190.0,0.00088605]
[1763222636105,0.04929,96191.0,96190.0,0.02565605]
[1763222636492,0.04929,96191.0,96190.0,0.00088605]
[1763222637294,0.07314129,96191.0,96190.0,0.00088605]
[1763222637692,0.04929,96191.0,96190.0,0.00088605]
[1763222637905,0.07314129,96191.0,96190.0,0.00088605]
[1763222639402,0.07314129,96191.0,96190.0,0.02311605]
[1763222640008,0.07314129,96191.0,96190.0,0.00088605]
[1763222641411,0.07314129,96191.0,96190.0,0.02311605]
[1763222641700,0.07314129,96191.0,96190.0,0.04534605]
[1763222641910,0.02385129,96191.0,96190.0,0.04534605]
[1763222642202,0.3608,96193.0,96192.0,0.04446]
[1763222642797,0.38207,96193.0,96192.0,0.04446]
[1763222643194,0.3608,96193.0,96192.0,0.04446]
[1763222643603,0.40368,96208.0,96207.0,0.04446]
[1763222643803,0.40368,96208.0,96200.0,0.6511241]
[1763222643804,0.04288,96201.0,96200.0,0.6511241]
[1763222643998,0.04288,96201.0,96200.0,0.65185425]
[1763222644193,0.06676813,96201.0,96200.0,0.04519015]
[1763222649001,0.02388813,96201.0,96200.0,0.04519015]
[1763222649209,0.40368,96208.0,96207.0,0.04446]
[1763222649514,0.06678498,96208.0,96207.0,0.04446]
[1763222651205,0.04288,96208.0,96207.0,0.04446]
[1763222652710,0.06677044,96208.0,96207.0,0.04446]
[1763222652910,0.04288,96208.0,96207.0,0.04446]
[1763222658615,0.00219803,96210.0,96209.0,0.04586]
[1763222658812,0.04561803,96210.0,96209.0,0.04586]
[1763222660210,0.3608,96214.0,96213.0,0.04586]
[1763222660510,0.38467132,96214.0,96213.0,0.04586]
[1763222660718,0.40422,96222.0,96221.0,0.04586]
[1763222660924,0.42809324,96222.0,96221.0,0.04586]
[1763222661417,0.04342,96221.0,96220.0,0.00073015]
[1763222661612,0.06729324,96221.0,96220.0,0.02343015]
[1763222661918,0.06729324,96221.0,96220.0,0.04659015]
[1763222662215,0.04342,96221.0,96220.0,0.04659015]
[1763222663914,0.3608,96222.0,96221.0,0.04586]
[1763222665117,0.04561803,96230.0,96229.0,0.05946]
[1763222665511,0.00219803,96230.0,96229.0,0.05946]
[1763222666116,0.02347803,96230.0,96229.0,0.05946]
[1763222666518,0.04561803,96230.0,96229.0,0.05946]
[1763222667624,0.04561803,96230.0,96229.0,0.04586]
[1763222668218,0.04561803,96230.0,96229.0,0.05977]
[1763222668618,0.04561803,96230.0,96229.0,0.0227]
[1763222668811,0.04561803,96230.0,96229.0,0.05861]
[1763222670219,0.02347803,96230.0,96229.0,0.05861]
[1763222670426,0.04582803,96230.0,96229.0,0.05861]
[1763222671217,0.04582803,96230.0,96229.0,0.05961]
[1763222671419,0.04582803,96230.0,96229.0,0.0457]
[1763222671821,0.04582803,96230.0,96229.0,0.0467]
[1763222672020,0.04582803,96230.0,96229.0,0.0457]
[1763222672525,0.04582803,96230.0,96229.0,0.0447]
[1763222673519,0.04582803,96230.0,96229.0,0.05861]
[1763222678017,0.00219803,96230.0,96222.0,0.02153]
[1763222678218,0.04539,96223.0,96222.0,0.02153]
[1763222678729,0.04539,96221.0,96220.0,0.00073015]
[1763222678930,0.0691392,96221.0,96220.0,0.00073015]
[1763222679529,0.04539,96214.0,96213.0,0.08113559]
[1763222679729,0.04439,96213.0,96204.0,0.01391]
[1763222680029,0.04439,96213.0,96200.0,0.16227118]
[1763222680030,0.0681392,96213.0,96210.0,0.00073015]
[1763222680433,0.0681392,96213.0,96200.0,0.16831559]
[1763222680731,0.04439,96201.0,96200.0,0.08113559]
[1763222680930,0.40519,96201.0,96200.0,0.08718]
[1763222681123,0.04539,96193.0,96192.0,0.05744]
[1763222681523,0.04439,96191.0,96190.0,0.00073015]
[1763222681723,0.40519,96191.0,96190.0,0.08791015]
[1763222681925,0.40419,96191.0,96190.0,0.00073015]
[1763222682733,0.40419,96191.0,96190.0,0.00273015]
[1763222683233,0.40219,96191.0,96190.0,0.00273015]
[1763222684129,0.40219,96191.0,96190.0,0.00473015]
[1763222685241,0.40219,96191.0,96190.0,0.02626015]
[1763222686038,0.3608,96191.0,96190.0,0.04826015]
[1763222686233,0.40619,96191.0,96190.0,0.04826015]
[1763222688431,0.3608,96191.0,96190.0,0.04826015]
[1763222688638,0.38384,96191.0,96190.0,0.04826015]
[1763222689229,0.40619,96191.0,96190.0,0.02626015]
[1763222689433,0.40619,96191.0,96190.0,0.04826015]
[1763222693531,0.40619,96191.0,96190.0,0.00473015]
[1763222694740,0.40619,96191.0,96190.0,0.004]
[1763222696439,0.40619,96191.0,96190.0,0.00473015]
[1763222696641,0.40619,96191.0,96190.0,0.04826015]
[1763222697233,0.40619,96191.0,96190.0,0.00473015]
[1763222698032,0.40619,96191.0,96190.0,0.02626015]
[1763222699339,0.40619,96191.0,96190.0,0.04915015]
[1763222699737,0.40619,96191.0,96190.0,0.00473015]
[1763222701743,0.40619,96191.0,96190.0,0.05002015]
[1763222704747,0.40619,96191.0,96190.0,0.02713015]
[1763222705444,0.40619,96191.0,96190.0,0.00473015]
[1763222706148,0.42985288,96191.0,96190.0,0.004]
[1763222707145,0.42985288,96191.0,96190.0,0.002]
[1763222707842,0.04251,96184.0,96183.0,0.0001559]
[1763222708045,0.04251,96184.0,96183.0,0.0225559]
[1763222708347,0.04251,96184.0,96183.0,0.0454459]
[1763222709047,0.06621957,96184.0,96183.0,0.0001559]
[1763222709643,0.06621957,96184.0,96183.0,0.0225559]
[1763222710049,0.06621957,96184.0,96183.0,0.0454459]
[1763222710245,0.02370957,96184.0,96183.0,0.0454459]
[1763222710446,0.04479957,96184.0,96183.0,0.0454459]
[1763222710748,0.06621957,96184.0,96183.0,0.0454459]
[1763222711651,0.06621957,96184.0,96183.0,0.0464459]
[1763222712449,0.06621957,96184.0,96183.0,0.0454459]
[1763222712651,0.06621957,96184.0,96183.0,0.0464459]
[1763222713344,0.06621957,96184.0,96183.0,0.0454459]
[1763222715150,0.06621957,96184.0,96183.0,0.0464459]
[1763222716055,0.04251,96184.0,96183.0,0.0235559]
[1763222716256,0.04251,96184.0,96183.0,0.0245559]
[1763222716848,0.04251,96184.0,96183.0,0.0235559]
[1763222717557,0.04251,96184.0,96183.0,0.0460759]
[1763222718045,0.04251,96184.0,96183.0,0.0450759]
[1763222718249,0.04251,96184.0,96183.0,0.0460759]
[1763222718953,0.04251,96184.0,96183.0,0.0001559]
[1763222719158,0.06624098,96184.0,96183.0,0.0001559]
[1763222719352,0.42704098,96184.0,96183.0,0.0001559]
[1763222720458,0.04457,96171.0,96170.0,0.20889455]
[1763222720656,0.40537,96171.0,96170.0,0.6066641]
[1763222720858,0.04457,96167.0,96166.0,0.04392997]
[1763222722056,0.04457,96167.0,96166.0,0.00025997]
[1763222722262,0.04357,96167.0,96166.0,0.00125997]
[1763222722448,0.04357,96167.0,96166.0,0.04492997]
[1763222722855,0.04357,96167.0,96166.0,0.04592997]
[1763222726762,0.02347803,96170.0,96169.0,0.04367]
[1763222727155,0.04676803,96170.0,96169.0,0.04367]
[1763222727358,0.04676803,96170.0,96169.0,0.02115]
[1763222727557,0.04676803,96170.0,96169.0,0.04367]
[1763222727958,0.04676803,96170.0,96169.0,0.04467]
[1763222728357,0.04676803,96170.0,96169.0,0.02215]
[1763222728862,0.04676803,96170.0,96169.0,0.04359]
[1763222734757,0.04676803,96170.0,96169.0,0.001]
[1763222735362,0.04676803,96170.0,96169.0,0.02266]
[1763222736065,0.04676803,96170.0,96169.0,0.001]
[1763222736566,0.04338,96167.0,96166.0,0.00025997]
[1763222737660,0.04338,96167.0,96166.0,0.00125997]
[1763222738064,0.04338,96158.0,96157.0,0.0001559]
[1763222738274,0.04338,96136.0,96135.0,0.04778089]
[1763222738464,0.40418,96136.0,96135.0,0.04778089]
[1763222738769,0.00219803,96140.0,96139.0,0.0431]
[1763222739765,0.00119803,96140.0,96139.0,0.0431]
[1763222740765,0.04353599,96149.0,96148.0,0.0431]
[1763222742671,0.04353599,96149.0,96148.0,0.0441]
[1763222745169,0.00015599,96149.0,96148.0,0.0441]
[1763222745370,0.04353599,96149.0,96148.0,0.0441]
[1763222756672,0.00015599,96149.0,96148.0,0.0441]
[1763222756866,0.38232,96165.0,96164.0,0.0431]
[1763222757080,0.40418,96165.0,96164.0,0.0431]
[1763222761995,0.40418,96165.0,96152.0,0.1040695]
[1763222761996,0.04231,96101.0,96100.0,1.74593262]
[1763222762281,0.06569362,96101.0,96100.0,0.13881551]
[1763222762483,0.01219802,96100.0,96055.0,0.01754479]
[1763222762779,0.03720189,96069.0,96065.0,0.01286]
[1763222762980,0.3608,96066.0,96065.0,0.03527]
[1763222763171,0.38418362,96066.0,96065.0,0.03527]
[1763222763376,0.38548391,96066.0,96065.0,0.03527]
[1763222763577,0.38548391,96066.0,96065.0,0.01286]
[1763222764675,0.38548391,96066.0,96057.0,0.00015609]
[1763222764874,0.3608,96058.0,96057.0,0.00015609]
[1763222765073,0.38418362,96058.0,96057.0,0.00015609]
[1763222765274,0.39935339,96058.0,96057.0,0.00015609]
[1763222765472,0.39942704,96058.0,96057.0,0.00015609]
[1763222767373,0.39935339,96058.0,96050.0,5.32337853]
[1763222767680,0.02338362,96057.0,96050.0,5.21929853]
[1763222767878,0.3608,96051.0,96050.0,4.85849853]
[1763222768074,0.38418362,96051.0,96050.0,4.85849853]
[1763222768276,0.38678497,96051.0,96050.0,4.85849853]
[1763222769385,0.74758497,96051.0,96050.0,3.53376683]
[1763222770381,0.75058497,96051.0,96050.0,3.53376683]
[1763222770882,0.74769758,96051.0,96050.0,3.53376683]
[1763222771084,0.75370054,96051.0,96050.0,3.53376683]
[1763222771282,0.75370054,96051.0,96050.0,3.49876683]
[1763222771283,0.75358497,96051.0,96050.0,3.49876683]
[1763222771579,0.75358497,96051.0,96050.0,2.47957608]
[1763222772278,0.85358497,96051.0,96050.0,2.47957608]
[1763222772479,0.85058497,96051.0,96050.0,1.71672533]
[1763222772674,0.85258497,96051.0,96050.0,1.25898438]
[1763222772883,0.85258497,96051.0,96050.0,0.79410438]
[1763222773284,0.84958497,96051.0,96050.0,0.79410438]
[1763222773482,0.85258497,96051.0,96050.0,0.79410438]
[1763222773687,0.00219803,96050.0,96041.0,0.00015609]
[1763222773889,0.02338362,96049.0,96041.0,0.00015609]
[1763222774084,0.02338362,96048.0,96041.0,0.00015609]
[1763222774280,0.02338362,96047.0,96040.0,0.24696906]
[1763222774485,0.3608,96041.0,96040.0,0.24696906]
[1763222774688,0.00999999,96030.0,96015.0,0.00468674]
[1763222774889,0.3608,96019.0,96015.0,0.00468674]
[1763222775185,0.02815597,96018.0,96015.0,0.00468674]
[1763222775488,0.02815597,96018.0,96010.0,0.10408]
[1763222775489,0.05465447,96039.0,96038.0,0.21957]
[1763222775691,0.3608,96056.0,96039.0,0.21957]
[1763222775692,0.00073267,96040.0,96039.0,0.21957]
[1763222775884,0.01021959,96052.0,96050.0,0.21957]
[1763222776188,0.01989907,96051.0,96050.0,0.22176803]
[1763222776381,0.01689907,96051.0,96050.0,0.22176803]
[1763222776581,0.09568907,96051.0,96050.0,0.22176803]
[1763222776786,0.15758,96051.0,96050.0,0.22176803]
[1763222776994,0.17647907,96051.0,96050.0,0.22176803]
[1763222777184,0.17647907,96051.0,96050.0,0.00219803]
[1763222777688,0.15758,96042.0,96041.0,0.00015617]
[1763222778088,0.16625322,96042.0,96041.0,0.00015617]
[1763222779694,0.15726,96016.0,96015.0,0.3608]
[1763222779892,0.00999999,96020.0,96003.0,0.3608]
[1763222780193,0.3608,96013.0,95990.0,0.3608]
[1763222780492,0.00999999,95990.0,95967.0,0.3608]
[1763222780687,0.00999999,95990.0,95973.0,0.00015625]
[1763222780688,0.3608,95981.0,95973.0,0.00015625]
[1763222780888,0.10416,95980.0,95973.0,0.00015625]
[1763222781090,0.00390786,95980.0,95973.0,0.00015625]
[1763222781289,0.03522,95928.0,95874.0,0.3608]
[1763222781491,0.00219803,95920.0,95910.0,0.91721]
[1763222781696,0.00999999,95930.0,95910.0,0.91721]
[1763222781697,0.02260499,95927.0,95914.0,0.07045]
[1763222781992,0.07286125,95929.0,95926.0,0.21957]
[1763222782189,0.07286125,95929.0,95928.0,0.1098]
[1763222782392,7.327e-05,95929.0,95928.0,0.1098]
[1763222782592,0.00050269,95929.0,95928.0,0.1098]
[1763222782897,0.00050269,95929.0,95928.0,0.21957]
[1763222783284,0.36130269,95929.0,95928.0,0.1098]
[1763222783988,0.36130269,95929.0,95918.0,0.00010404]
[1763222784190,0.36130269,95929.0,95920.0,2.44671832]
[1763222784389,0.3608,95921.0,95920.0,1.52950832]
[1763222784588,0.36087507,95921.0,95920.0,1.52950832]
[1763222784792,0.47407305,95921.0,95920.0,0.00073267]
[1763222784989,0.00219803,95920.0,95918.0,0.00010404]
[1763222785394,0.00219803,95920.0,95910.0,0.10416]
[1763222785395,0.01875492,95919.0,95910.0,0.10416]
[1763222785590,0.3608,95911.0,95910.0,0.10416]
[1763222786092,0.00219803,95910.0,95900.0,0.10416]
[1763222786289,0.3608,95901.0,95900.0,2.55014565]
[1763222786599,0.36482641,95901.0,95900.0,2.55087832]
[1763222786794,0.36482641,95901.0,95900.0,0.10489267]
[1763222787003,0.36482641,95901.0,95900.0,0.00073267]
[1763222787191,0.00219803,95900.0,95890.0,0.10416]
[1763222787500,0.11492032,95899.0,95898.0,0.1098]
[1763222787995,0.11492032,95899.0,95898.0,0.21957]
[1763222790700,0.11492032,95899.0,95898.0,0.22057]
[1763222791398,0.11492032,95899.0,95898.0,0.21957]
[1763222792010,0.47572032,95899.0,95898.0,0.21957]
[1763222792190,0.47572032,95899.0,95895.0,0.10698261]
[1763222792191,0.25152,95896.0,95895.0,0.00469261]
[1763222792397,0.28101265,95896.0,95895.0,0.00469261]
[1763222792595,0.31860965,95896.0,95895.0,0.00469261]
[1763222793200,0.31860965,95896.0,95895.0,0.34109261]
[1763222793389,0.06708965,95896.0,95895.0,0.34109261]
[1763222794000,0.06708965,95896.0,95895.0,0.34209261]
[1763222794501,0.3608,95926.0,95925.0,0.3364]
[1763222794691,0.3608,95935.0,95925.0,0.3364]
[1763222794890,0.3608,95956.0,95940.0,2.015616]
[1763222795194,0.25152,95951.0,95950.0,2.01781403]
[1763222795400,0.06914738,95955.0,95950.0,2.01781403]
[1763222795700,0.3608,95956.0,95950.0,0.00219803]
[1763222795995,0.25152,95951.0,95950.0,1.10060403]
[1763222796402,0.3608,95956.0,95955.0,0.16685]
[1763222796602,0.06697495,95951.0,95950.0,1.10060403]
[1763222796805,0.31849495,95951.0,95950.0,1.10060403]
[1763222797002,0.06697495,95951.0,95950.0,1.10060403]
[1763222797499,0.06697495,95951.0,95950.0,0.33859803]
[1763222798202,0.05056945,95951.0,95950.0,0.33859803]
[1763222800403,0.05056945,95951.0,95950.0,0.00219803]
[1763222800404,0.3566195,95951.0,95950.0,0.00219803]
[1763222800600,0.25152,95944.0,95943.0,0.00015634]
[1763222800907,0.25152,95944.0,95908.0,0.3608]
[1763222800908,0.15564,95909.0,95908.0,0.3608]
[1763222801103,0.05507352,95920.0,95919.0,0.3364]
[1763222801308,0.05510011,95921.0,95920.0,0.85983803]
[1763222801506,0.13292011,95921.0,95920.0,1.43700403]
[1763222801807,0.1586834,95921.0,95920.0,0.00219803]
[1763222803507,0.1586834,95921.0,95910.0,0.10229]
[1763222803508,0.1596834,95921.0,95910.0,0.10229]
[1763222803698,0.05514104,95915.0,95914.0,0.3364]
[1763222803898,0.05514104,95917.0,95914.0,0.3364]
[1763222804201,0.07882004,95915.0,95914.0,0.3364]
[1763222804401,0.0021738,95916.0,95915.0,0.3364]
[1763222804602,0.07708091,95920.0,95919.0,0.3364]
[1763222804795,0.001,95921.0,95920.0,0.33859803]
[1763222804999,0.0561758,95921.0,95920.0,0.33859803]
[1763222805296,0.00404342,95921.0,95920.0,0.33859803]
[1763222806302,0.15968342,95921.0,95920.0,0.00219803]
[1763222806498,0.18806187,95921.0,95920.0,0.00219803]
[1763222806696,0.18906187,95921.0,95920.0,0.00219803]
[1763222807609,0.18806187,95921.0,95920.0,0.00219803]
[1763222807808,0.18906187,95921.0,95920.0,0.00219803]
[1763222808004,0.07782,95911.0,95910.0,0.10229]
[1763222808309,0.26731703,95911.0,95910.0,0.10448803]
[1763222808712,0.15564,95909.0,95908.0,0.3608]
[1763222808902,0.15564,95901.0,95900.0,0.00219803]
[1763222809103,0.18501845,95901.0,95900.0,1.10060403]
[1763222809406,0.19197673,95901.0,95900.0,1.10060403]
[1763222809809,0.26597321,95901.0,95900.0,1.10060403]
[1763222810207,0.19197673,95901.0,95900.0,1.10060403]
[1763222810407,0.19197673,95901.0,95900.0,0.00219803]
[1763222811314,0.15564,95896.0,95887.0,0.3608]
[1763222811504,0.18514944,95896.0,95887.0,0.3608]
[1763222811703,0.27658035,95896.0,95887.0,0.3608]
[1763222811903,0.27658035,95896.0,95890.0,0.00219803]
[1763222812108,0.15564,95891.0,95890.0,1.098406]
[1763222812304,0.24707091,95896.0,95895.0,0.16685]
[1763222812506,0.18478276,95896.0,95895.0,0.16685]
[1763222812702,0.27186371,95896.0,95895.0,0.16685]
[1763222813814,0.07782,95891.0,95890.0,1.09913867]
[1763222814006,0.18478276,95891.0,95890.0,1.09913867]
[1763222814211,0.20044096,95891.0,95890.0,0.00073267]
[1763222814710,0.20044096,95891.0,95890.0,0.16758267]
[1763222814912,0.20044096,95891.0,95890.0,0.33713267]
[1763222815108,0.04480096,95891.0,95890.0,0.33713267]
[1763222815313,0.09258317,95912.0,95911.0,0.3364]
[1763222815510,0.09258317,95914.0,95913.0,0.3364]
[1763222815812,0.24822317,95920.0,95919.0,0.16685]
[1763222816008,0.15783803,95920.0,95919.0,0.6972]
[1763222816208,0.00219803,95920.0,95919.0,0.6972]
[1763222816514,0.06405548,95920.0,95919.0,0.6972]
[1763222817509,0.06505548,95920.0,95919.0,0.6972]
[1763222817712,0.14287548,95920.0,95919.0,0.6972]
[1763222817912,0.22069548,95920.0,95919.0,0.6972]
[1763222818212,0.22169548,95920.0,95919.0,0.6972]
[1763222820410,0.19942089,95920.0,95919.0,0.6972]
[1763222820602,0.12160089,95920.0,95919.0,0.6972]
[1763222820805,0.06385745,95920.0,95919.0,0.6972]
[1763222821113,0.06141,95941.0,95940.0,0.27359]
[1763222821315,0.06141,95941.0,95940.0,0.38745537]
[1763222821508,0.17918,95941.0,95940.0,0.38745537]
[1763222822105,0.32827959,95950.0,95949.0,0.33877]
[1763222822314,0.00235445,95950.0,95949.0,0.69957]
[1763222822511,0.23789445,95950.0,95949.0,0.3608]
[1763222822714,0.23554,95937.0,95936.0,0.3608]
[1763222823017,0.00219803,95940.0,95939.0,0.33877]
[1763222824118,0.00015642,95950.0,95949.0,0.33877]
[1763222824315,0.00235445,95950.0,95949.0,0.69957]
[1763222824617,0.00335445,95950.0,95949.0,0.69957]
[1763222825116,0.23554,95932.0,95931.0,0.00015642]
[1763222826019,0.00219803,95930.0,95906.0,0.3608]
[1763222826218,0.23554,95921.0,95920.0,0.55776252]
[1763222826723,0.00219803,95920.0,95906.0,0.3608]
[1763222827021,0.07407241,95917.0,95910.0,0.91794267]
[1763222827208,0.07407241,95916.0,95910.0,1.47570519]
[1763222827415,0.07581162,95916.0,95910.0,1.47570519]
[1763222827720,0.2613269,95915.0,95914.0,0.10432]
[1763222828018,0.26393548,95915.0,95914.0,0.27359]
[1763222828820,0.26393548,95915.0,95914.0,0.44309]
[1763222830414,0.26393548,95915.0,95914.0,0.80389]
[1763222830612,0.02839548,95915.0,95914.0,0.80389]
[1763222830816,0.02939548,95915.0,95914.0,0.80389]
[1763222831014,0.03039548,95915.0,95914.0,0.80389]
[1763222831417,0.02939548,95915.0,95914.0,0.80389]
[1763222831716,0.03039548,95915.0,95914.0,0.80389]
[1763222832716,0.09257853,95942.0,95940.0,0.41372]
[1763222833024,0.24870853,95942.0,95941.0,0.23486521]
[1763222833218,0.31315,95942.0,95941.0,0.23486521]
[1763222833917,0.31515,95942.0,95941.0,0.23486521]
[1763222834628,0.31715,95942.0,95941.0,0.23486521]
[1763222835421,0.31715,95942.0,95941.0,0.07654521]
[1763222835618,0.31715,95942.0,95932.0,0.00015633]
[1763222835619,0.31315,95933.0,95932.0,0.00015633]
[1763222835822,0.67395,95933.0,95932.0,0.00015633]
[1763222837126,0.67495,95933.0,95932.0,0.00015633]
[1763222838216,0.67595,95933.0,95932.0,0.00015633]
[1763222841521,0.31515,95933.0,95932.0,0.31957633]
[1763222841722,0.31315,95933.0,95932.0,0.00015633]
[1763222841922,0.31515,95933.0,95932.0,0.16125633]
[1763222842129,0.31515,95933.0,95932.0,0.31957633]
[1763222843930,0.31515,95933.0,95932.0,0.00015633]
[1763222844228,0.31515,95933.0,95932.0,0.31957633]
[1763222845027,0.31415,95933.0,95932.0,0.31957633]
[1763222845230,0.31515,95933.0,95932.0,0.31957633]
[1763222846622,0.31515,95933.0,95932.0,0.68037633]
[1763222846931,0.31315,95946.0,95945.0,0.31942]
[1763222847122,0.31315,95946.0,95945.0,0.68022]
[1763222847824,0.15613,95946.0,95945.0,0.68022]
[1763222848130,0.15205803,95950.0,95949.0,0.31579]
[1763222848526,0.00219803,95950.0,95949.0,0.31579]
[1763222848726,0.15205803,95950.0,95949.0,0.31579]
[1763222849130,0.31778803,95950.0,95949.0,0.31579]
[1763222849324,0.00219803,95950.0,95949.0,0.31579]
[1763222849833,0.00319803,95950.0,95949.0,0.31579]
[1763222850028,0.00419803,95950.0,95949.0,0.31579]
[1763222850622,0.00319803,95950.0,95949.0,0.31579]
[1763222850822,0.31978803,95950.0,95949.0,0.31579]
[1763222851023,0.16573,95935.0,95934.0,0.5141]
[1763222851327,0.31559,95933.0,95932.0,0.00015633]
[1763222852433,0.67639,95933.0,95932.0,0.00015633]
[1763222853632,0.31559,95915.0,95914.0,0.3608]
[1763222853833,0.31559,95915.0,95904.0,0.3608]
[1763222853834,0.31559,95905.0,95904.0,0.3608]
[1763222854035,0.31559,95888.0,95887.0,0.4148]
[1763222854336,0.00219803,95900.0,95889.0,0.31579]
[1763222854337,0.00219803,95890.0,95889.0,0.31579]
[1763222854535,0.31559,95887.0,95886.0,0.36106073]
[1763222855037,0.3234193,95887.0,95886.0,0.36106073]
[1763222855537,0.3224193,95887.0,95886.0,0.36106073]
[1763222856436,0.3214193,95887.0,95886.0,0.36106073]
[1763222856739,0.3214193,95887.0,95886.0,0.36206073]
[1763222857036,0.3214193,95887.0,95886.0,0.36306073]
[1763222857428,0.35851889,95887.0,95886.0,0.36306073]
[1763222858027,0.35851889,95887.0,95886.0,0.36206073]
[1763222858435,0.3214193,95887.0,95886.0,0.36206073]
[1763222859333,0.3214193,95887.0,95886.0,0.00126073]
[1763222859545,0.4214193,95887.0,95886.0,0.00126073]
[1763222859728,0.3214193,95887.0,95886.0,0.00126073]
[1763222859935,0.31559,95878.0,95877.0,0.00015642]
[1763222860136,0.35264947,95878.0,95877.0,0.00015642]
[1763222860334,0.34168767,95878.0,95877.0,0.00015642]
[1763222860928,0.34168767,95878.0,95877.0,0.00115642]
[1763222861233,0.34168767,95878.0,95877.0,0.00215642]
[1763222861937,0.44168767,95878.0,95877.0,0.00215642]
[1763222862142,0.34168767,95878.0,95877.0,0.00215642]
[1763222863132,0.44168767,95878.0,95877.0,0.00215642]
[1763222863331,0.34168767,95878.0,95877.0,0.00215642]
[1763222863732,0.34168767,95878.0,95863.0,0.3608]
[1763222863733,0.31559,95864.0,95863.0,0.3608]
[1763222864240,0.33560493,95864.0,95863.0,0.3608]
[1763222865142,0.33560493,95864.0,95863.0,0.3618]
[1763222865333,0.00219803,95860.0,95850.0,0.00215642]
[1763222865539,0.31559,95851.0,95850.0,0.00215642]
[1763222865939,0.31950827,95851.0,95850.0,0.00215642]